[Event "Hungarian Super League 2024-25"]
[Site "Hungary"]
[Date "2024.11.02"]
[Round "1.14"]
[White "Hujbert, Florian"]
[Black "Pribelszky, Bence"]
[Result "0-1"]
[ECO "A05"]
[WhiteElo "2423"]
[BlackElo "2395"]
[Annotator "TA"]
[PlyCount "68"]
[EventDate "2024.10.30"]
[EventType "team-tourn"]
[EventCountry "HUN"]
[SourceTitle "playchess.com"]
[Source "ChessBase"]
[SourceQuality "1"]
[TimeControl "40/5400+30:1800+30"]

{[%evp 12,68,24,19,23,0,0,0,8,-10,9,10,34,-20,-8,-16,-17,-31,-31,-30,0,-38,87,93,68,0,0,0,0,0,0,-9,-16,-17,-13,-112,-124,-126,-112,-110,-106,-454,-462,-442,-430,-395,-307,-360,-354,-338,-319,-492,-535,-556,-558,-623,-613,-663,-641]} 1. Nf3 {[%emt 0:01:49]} Nf6 {[%emt 0:01:00]} 2. g3 {[%emt 0:00:47]} b6 {[%emt 0:00:09]} 3. Bg2 {[%emt 0:00:16]} Bb7 {[%emt 0:00:06]} 4. O-O {[%emt 0:00:09]} e6 {[%emt 0:00:53]} 5. c4 {[%emt 0:01:54]} Be7 {[%emt 0:00:31]} 6. Nc3 {[%emt 0:02:31]} O-O {[%emt 0:00:11]} 7. Re1 {[%emt 0:01:21]} Ne4 {[%emt 0:00:32]} 8. d3 {[%emt 0:07:04]} Nxc3 {[%emt 0:00:15]} 9. bxc3 {[%emt 0:00:05]} f5 {[%emt 0:07:10] The position is equal.} 10. a4 {[%emt 0:12:04]} (10. e4 $5) 10... a5 {[%emt 0:06:31]} 11. e4 {[%emt 0:04:53]} fxe4 {[%emt 0:00:31]} 12. dxe4 {[%emt 0:00:05]} (12. Nd2 $1 $14) 12... Na6 {[%emt 0:03:07]} 13. e5 {[%emt 0:05:29]} Nc5 {[%emt 0:01:30]} 14. Nd4 {[%emt 0:03:53]} Bxg2 {[%emt 0:01:34]} 15. Kxg2 {[%emt 0:00:06]} Qc8 {[%emt 0:19:51]} 16. Ra2 {[%emt 0:03:33]} d6 {[%emt 0:05:06] [#]} (16... Qa6 $15 {keeps the upper hand.} 17. Qe2 Qb7+ 18. f3 Rf7) 17. exd6 $1 $16 {[%emt 0:06:44]} Bxd6 {[%emt 0:00:45] [#]} 18. Nxe6 $1 {[%emt 0:21:57]} Nxe6 $11 {[%emt 0:10:55]} 19. Qd5 {[%emt 0:00:25] Repels Rf5} Rf6 {[%emt 0:00:59] aiming for ...c6.} 20. Rae2 {[%emt 0:09:18]} Kf7 {[%emt 0:20:20]} 21. Rxe6 {[%emt 0:06:51]} Rxe6 {[%emt 0:00:06]} 22. Rxe6 {[%emt 0:00:18]} Qxe6 {[%emt 0:00:04]} 23. Qf3+ {[%emt 0:03:15] [#]} (23. Qxa8 $11 Qxc4 24. Be3) 23... Bf4 $1 $17 {[%emt 0:04:04]} 24. Bxf4 {[%emt 0:01:22][%mdl 4096] Endgame. KQR-KQB} Rc8 $36 {[%emt 0:00:03][%mdl 2048] Black is on the roll.} 25. Be5+ {[%emt 0:03:09]} Kg8 {[%emt 0:00:53]} (25... Ke7 {keeps more tension.} 26. Bxg7 Re8 27. Qd3 Qg6) 26. Qd5 {[%emt 0:01:38][%mdl 8192] Loses the game.} (26. Qb7 $17 {was the crucial defense.}) 26... Qxd5+ $19 {[%emt 0:04:28]} 27. cxd5 {[%emt 0:00:05] KR-KB} c6 {[%emt 0:08:05]} 28. d6 {[%emt 0:00:13]} Rd8 {[%emt 0:00:06]} 29. Kf3 {[%emt 0:01:24]} Kf7 {[%emt 0:04:12]} ({Don't do} 29... b5 30. axb5 cxb5 31. Ke4 $19) 30. Ke4 {[%emt 0:00:08]} Ke6 {[%emt 0:00:58] Repels c4} 31. Bxg7 {[%emt 0:01:07]} (31. c4 {keeps fighting.}) 31... Rxd6 {[%emt 0:00:15] Black is clearly winning.} ({Less strong is} 31... Kxd6 32. Be5+ Ke6 33. Bc7 $19) 32. Bd4 {[%emt 0:01:31]} c5 {[%emt 0:00:43]} 33. Be3 {[%emt 0:00:12]} Rd1 {[%emt 0:00:20]} 34. f4 {[%emt 0:00:57]} Ra1 {[%emt 0:00:26] Weighted Error Value: White=0.44/Black=0.14 (very precise) .  Loses game:     	White=1     	---        Mistake:       	White=4     	Black=1      Inaccurate:     	White=1     	Black=1      OK:         	White=8     	Black=12     Best:        	---       	Black=1      Strong:       	White=1     	---        Brilliant:      	---       	Black=1} 0-1

[Event "Hungarian Super League 2024-25"]
[Site "Hungary"]
[Date "2024.11.02"]
[Round "1.15"]
[White "Papp, Levente"]
[Black "Horvath, Zsolt"]
[Result "1-0"]
[ECO "A14"]
[WhiteElo "2367"]
[BlackElo "2378"]
[Annotator "RC"]
[PlyCount "89"]
[EventDate "2024.10.30"]
[EventType "team-tourn"]
[EventCountry "HUN"]
[SourceTitle "playchess.com"]
[Source "ChessBase"]
[SourceQuality "1"]
[TimeControl "40/5400+30:1800+30"]

1. c4 {[%emt 0:00:33]} e6 {[%emt 0:07:31]} 2. Nf3 {[%emt 0:00:29]} d5 {[%emt 0:01:00]} 3. g3 {[%emt 0:00:12]} Nf6 {[%emt 0:00:08]} 4. Bg2 {[%emt 0:00:06]} Be7 {[%emt 0:00:09]} 5. O-O {[%emt 0:00:09]} O-O {[%emt 0:00:06]} 6. b3 {[%emt 0:00:10]} c5 {[%emt 0:03:07]} 7. cxd5 {[%emt 0:01:17]} Nxd5 {[%emt 0:01:19]} 8. Bb2 {[%emt 0:00:48]} Bf6 {[%emt 0:25:00]} 9. Qc1 {[%emt 0:01:03]} Bxb2 {[%emt 0:04:16]} 10. Qxb2 {[%emt 0:00:07]} Nc6 {[%emt 0:00:44]} 11. Nc3 {[%emt 0:08:43]} Qf6 {[%emt 0:04:30]} 12. Rac1 {[%emt 0:00:58]} Bd7 {[%emt 0:04:40]} 13. Rfd1 {[%emt 0:12:43]} Rac8 {[%emt 0:03:31]} 14. e3 {[%emt 0:23:38]} b6 {[%emt 0:29:50]} 15. d4 {[%emt 0:20:33]} Nxc3 {[%emt 0:00:09]} 16. Rxc3 {[%emt 0:00:05]} cxd4 {[%emt 0:00:31]} 17. exd4 {[%emt 0:08:02]} g6 {[%emt 0:02:01]} 18. h4 {[%emt 0:04:51]} h6 {[%emt 0:03:22]} 19. Qd2 {[%emt 0:00:46]} Qg7 {[%emt 0:01:09]} 20. Rdc1 {[%emt 0:01:21]} Rfd8 {[%emt 0:01:07]} 21. Qe3 {[%emt 0:00:57]} Ne7 {[%emt 0:02:03]} 22. Ne5 {[%emt 0:01:09]} Qf8 {[%emt 0:02:51]} 23. Rxc8 {[%emt 0:07:06]} Bxc8 {[%emt 0:00:10]} 24. Rc7 {[%emt 0:00:25]} f6 {[%emt 0:02:04]} 25. Nc6 {[%emt 0:03:57]} Nxc6 {[%emt 0:00:32]} 26. Rxc6 {[%emt 0:00:15]} Bd7 {[%emt 0:00:35]} 27. Rc7 {[%emt 0:00:18]} Qd6 {[%emt 0:00:46]} 28. Rxa7 {[%emt 0:00:20]} g5 {[%emt 0:00:38]} 29. h5 {[%emt 0:01:44]} Kf8 {[%emt 0:00:32]} 30. Qd3 {[%emt 0:00:56]} f5 {[%emt 0:00:08]} 31. Qc3 {[%emt 0:01:12]} Rc8 {[%emt 0:00:28]} 32. Qb2 {[%emt 0:00:43]} Ke8 {[%emt 0:00:25]} 33. Kh2 {[%emt 0:00:32]} Kd8 {[%emt 0:00:55]} 34. Qd2 {[%emt 0:00:47]} f4 {[%emt 0:00:34]} 35. Qd3 {[%emt 0:00:16]} fxg3+ {[%emt 0:00:12]} 36. fxg3 {[%emt 0:00:06]} e5 {[%emt 0:00:47]} 37. Qh7 {[%emt 0:00:45]} exd4 {[%emt 0:00:25]} 38. Bh3 {[%emt 0:00:11]} Rc7 {[%emt 0:00:44]} 39. Ra8+ {[%emt 0:00:25]} Rc8 {[%emt 0:00:24]} 40. Qg8+ {[%emt 0:00:00]} Ke7 {[%emt 0:00:00]} 41. Rxc8 {[%emt 0:03:34]} Bxc8 {[%emt 0:00:22]} 42. Qxc8 {[%emt 0:00:58]} d3 {[%emt 0:00:28]} 43. Qb7+ {[%emt 0:02:40]} Kf8 {[%emt 0:05:11]} 44. Qf3+ {[%emt 0:01:40]} Ke7 {[%emt 0:00:09]} 45. Qe3+ {[%emt 0:00:26]} 1-0

[Event "Hungarian Super League 2024-25"]
[Site "Hungary"]
[Date "2024.11.02"]
[Round "1.16"]
[White "Szalai, Kornel"]
[Black "Juhasz, Armin"]
[Result "1/2-1/2"]
[ECO "A06"]
[WhiteElo "2370"]
[BlackElo "2379"]
[Annotator "RC"]
[PlyCount "103"]
[EventDate "2024.10.30"]
[EventType "team-tourn"]
[EventCountry "HUN"]
[SourceTitle "playchess.com"]
[Source "ChessBase"]
[SourceQuality "1"]
[TimeControl "40/5400+30:1800+30"]

1. Nf3 {[%emt 0:01:34]} d5 {[%emt 0:00:39]} 2. e3 {[%emt 0:00:08]} Nf6 {[%emt 0:00:43]} 3. c4 {[%emt 0:00:28]} e6 {[%emt 0:00:22]} 4. b3 {[%emt 0:01:54]} c5 {[%emt 0:00:46]} 5. Bb2 {[%emt 0:00:21]} Nc6 {[%emt 0:00:31]} 6. cxd5 {[%emt 0:05:51]} exd5 {[%emt 0:03:39]} 7. Be2 {[%emt 0:02:13]} Bd6 {[%emt 0:05:21]} 8. O-O {[%emt 0:06:59]} O-O {[%emt 0:00:31]} 9. d4 {[%emt 0:01:54]} Bg4 {[%emt 0:09:57]} 10. dxc5 {[%emt 0:12:52]} Bxc5 {[%emt 0:00:13]} 11. Nc3 {[%emt 0:00:28]} a6 {[%emt 0:02:59]} 12. Na4 {[%emt 0:13:38]} Ba7 {[%emt 0:10:45]} 13. h3 {[%emt 0:16:59]} Be6 {[%emt 0:03:01]} 14. Ba3 Re8 {[%emt 0:01:09]} 15. Nc5 {[%emt 0:14:27]} Qa5 {[%emt 0:08:57]} 16. Nxe6 {[%emt 0:08:37]} fxe6 {[%emt 0:01:09]} 17. Bb2 {[%emt 0:00:26]} e5 {[%emt 0:03:35]} 18. a3 {[%emt 0:01:03]} Rad8 {[%emt 0:04:12]} 19. Rc1 {[%emt 0:00:56]} Bb8 {[%emt 0:02:16]} 20. b4 {[%emt 0:03:13]} Qc7 {[%emt 0:02:34]} 21. g3 {[%emt 0:00:06]} Kh8 {[%emt 0:02:54]} 22. Nd2 {[%emt 0:00:35]} Qd7 {[%emt 0:01:50]} 23. Kg2 {[%emt 0:00:23]} Ba7 {[%emt 0:12:08]} 24. Nf3 {[%emt 0:02:19]} d4 {[%emt 0:04:10]} 25. exd4 {[%emt 0:00:24]} Nxd4 {[%emt 0:00:32]} 26. Bxd4 {[%emt 0:02:08]} Bxd4 {[%emt 0:00:43]} 27. Nxd4 {[%emt 0:00:54]} exd4 {[%emt 0:03:33]} 28. Bd3 {[%emt 0:01:19]} a5 {[%emt 0:06:23]} 29. Qf3 {[%emt 0:00:24]} axb4 {[%emt 0:00:29]} 30. axb4 {[%emt 0:00:05]} Nd5 {[%emt 0:01:56]} 31. Rc4 {[%emt 0:01:05]} Rf8 {[%emt 0:03:05]} 32. Qh5 {[%emt 0:00:19]} Nf6 {[%emt 0:00:14]} 33. Qg5 {[%emt 0:00:38]} Rc8 {[%emt 0:01:00]} 34. Rfc1 {[%emt 0:00:21]} Rxc4 {[%emt 0:00:22]} 35. Rxc4 {[%emt 0:00:11]} b5 {[%emt 0:01:32]} 36. Rc5 {[%emt 0:00:58]} Qb7+ {[%emt 0:00:21]} 37. Kg1 {[%emt 0:01:25]} Ne4 {[%emt 0:03:31]} 38. Rf5 {[%emt 0:00:30]} Ra8 {[%emt 0:00:40]} 39. Qf4 {[%emt 0:00:47]} Nf6 {[%emt 0:00:30]} 40. Qxd4 {[%emt 0:00:00]} Qe7 {[%emt 0:00:00]} 41. Rxb5 {[%emt 0:16:47]} Rd8 {[%emt 0:03:52]} 42. Qc4 {[%emt 0:02:51]} Qe1+ {[%emt 0:06:16]} 43. Bf1 {[%emt 0:05:00]} h6 {[%emt 0:01:51]} 44. Qe2 {[%emt 0:01:28]} Qb1 45. Rb7 {[%emt 0:00:36]} Ne4 {[%emt 0:02:48]} 46. Qg4 Ng5 47. Rd7 {[%emt 0:04:10]} Rxd7 {[%emt 0:04:24]} 48. Qxd7 {[%emt 0:00:04]} Nf3+ {[%emt 0:00:11]} 49. Kg2 {[%emt 0:00:03]} Ne1+ {[%emt 0:00:08]} 50. Kg1 {[%emt 0:00:40]} Nf3+ {[%emt 0:00:05]} 51. Kg2 {[%emt 0:00:04]} Ne1+ {[%emt 0:00:04]} 52. Kg1 {[%emt 0:00:05]} 1/2-1/2

[Event "Hungarian Super League 2024-25"]
[Site "Hungary"]
[Date "2024.11.02"]
[Round "1.17"]
[White "Jakab, Bela"]
[Black "Tatar Kis, Szabolcs"]
[Result "1/2-1/2"]
[ECO "B22"]
[WhiteElo "2361"]
[BlackElo "2324"]
[Annotator "RC"]
[PlyCount "83"]
[EventDate "2024.10.30"]
[EventType "team-tourn"]
[EventCountry "HUN"]
[SourceTitle "playchess.com"]
[Source "ChessBase"]
[SourceQuality "1"]
[TimeControl "40/5400+30:1800+30"]

1. e4 {[%emt 0:00:33]} c5 {[%emt 0:06:28]} 2. c3 {[%emt 0:00:07]} d5 {[%emt 0:00:54]} 3. exd5 {[%emt 0:00:17]} Qxd5 {[%emt 0:00:07]} 4. d4 {[%emt 0:00:05]} Nc6 {[%emt 0:00:36]} 5. Nf3 {[%emt 0:00:09]} Bg4 {[%emt 0:00:56]} 6. Be2 {[%emt 0:00:08]} Nf6 {[%emt 0:01:58]} 7. h3 {[%emt 0:07:19]} Bh5 {[%emt 0:01:47]} 8. c4 {[%emt 0:01:43]} Qd6 {[%emt 0:24:04]} 9. d5 {[%emt 0:02:47]} Bxf3 {[%emt 0:01:38]} 10. Bxf3 {[%emt 0:00:09]} Nd4 {[%emt 0:00:25]} 11. O-O {[%emt 0:08:26]} g6 {[%emt 0:01:44]} 12. Be3 {[%emt 0:12:38]} Nxf3+ {[%emt 0:04:47]} 13. Qxf3 {[%emt 0:00:07]} Bg7 {[%emt 0:00:32]} 14. Nc3 {[%emt 0:00:36]} O-O {[%emt 0:13:30]} 15. Rac1 {[%emt 0:06:53]} b6 {[%emt 0:05:32]} 16. Rfd1 {[%emt 0:03:23]} Qd7 {[%emt 0:09:30]} 17. b3 {[%emt 0:03:36]} Ne8 {[%emt 0:02:06]} 18. Bf4 {[%emt 0:13:28]} Nd6 {[%emt 0:01:42]} 19. Bxd6 {[%emt 0:11:43]} Qxd6 {[%emt 0:01:12]} 20. Ne4 {[%emt 0:00:22]} Qe5 {[%emt 0:00:45]} 21. Re1 {[%emt 0:03:55]} Qb2 {[%emt 0:04:23]} 22. a4 {[%emt 0:05:07]} Rad8 {[%emt 0:01:48]} 23. Rcd1 {[%emt 0:00:43]} Rd7 {[%emt 0:00:34]} 24. Re2 {[%emt 0:02:47]} Qa3 {[%emt 0:01:01]} 25. Rde1 {[%emt 0:01:09]} a6 {[%emt 0:01:17]} 26. Nd2 {[%emt 0:02:35]} Qb4 {[%emt 0:00:42]} 27. Nf1 {[%emt 0:01:33]} Bf6 {[%emt 0:02:23]} 28. Nh2 {[%emt 0:01:45]} b5 {[%emt 0:05:32]} 29. axb5 {[%emt 0:05:08]} axb5 {[%emt 0:00:02]} 30. Re4 {[%emt 0:01:13]} bxc4 {[%emt 0:03:00]} 31. bxc4 {[%emt 0:00:19]} Ra8 {[%emt 0:02:13]} 32. Ng4 {[%emt 0:00:39]} Ra6 {[%emt 0:00:36]} 33. Nxf6+ {[%emt 0:01:35]} Rxf6 {[%emt 0:00:32]} 34. Qe2 {[%emt 0:00:35]} Kg7 {[%emt 0:00:27]} 35. Qc2 {[%emt 0:01:14]} Kf8 {[%emt 0:00:50]} 36. Qc1 {[%emt 0:00:51]} h5 {[%emt 0:01:31]} 37. Qh6+ {[%emt 0:00:55]} Kg8 {[%emt 0:00:10]} 38. Qc1 {[%emt 0:01:22]} Kf8 {[%emt 0:01:15]} 39. Qa1 {[%emt 0:00:36]} Qd2 {[%emt 0:00:44]} 40. R1e2 {[%emt 0:00:00]} Qd3 {[%emt 0:00:00]} 41. Qc1 {[%emt 0:07:26]} Rb7 {[%emt 0:08:52]} 42. Qh6+ {[%emt 0:11:23]} 1/2-1/2

[Event "Hungarian Super League 2024-25"]
[Site "Hungary"]
[Date "2024.11.02"]
[Round "1.18"]
[White "Terbe, Julianna"]
[Black "Kovacsy, Barnabas"]
[Result "1/2-1/2"]
[ECO "D85"]
[WhiteElo "2225"]
[BlackElo "2274"]
[Annotator "RC"]
[PlyCount "84"]
[EventDate "2024.10.30"]
[EventType "team-tourn"]
[EventCountry "HUN"]
[SourceTitle "playchess.com"]
[Source "ChessBase"]
[SourceQuality "1"]
[TimeControl "40/5400+30:1800+30"]

1. d4 {[%emt 0:01:50]} Nf6 {[%emt 0:01:12]} 2. c4 {[%emt 0:00:07]} g6 {[%emt 0:00:31]} 3. Nc3 {[%emt 0:00:07]} d5 {[%emt 0:00:05]} 4. cxd5 {[%emt 0:00:14]} Nxd5 {[%emt 0:00:07]} 5. e4 {[%emt 0:00:05]} Nxc3 {[%emt 0:00:13]} 6. bxc3 {[%emt 0:00:06]} Bg7 {[%emt 0:00:08]} 7. Nf3 {[%emt 0:00:11]} c5 {[%emt 0:01:30]} 8. Bb5+ {[%emt 0:00:16]} Nc6 {[%emt 0:02:47]} 9. Rb1 {[%emt 0:00:31]} O-O {[%emt 0:08:59]} 10. d5 {[%emt 0:00:13]} Ne5 {[%emt 0:03:32]} 11. O-O {[%emt 0:00:37]} a6 {[%emt 0:06:02]} 12. Bd3 {[%emt 0:00:41]} b5 {[%emt 0:12:21]} 13. Nxe5 {[%emt 0:04:06]} Bxe5 {[%emt 0:00:40]} 14. c4 {[%emt 0:00:05]} e6 {[%emt 0:09:01]} 15. Be3 {[%emt 0:08:57]} exd5 {[%emt 0:08:47]} 16. cxd5 {[%emt 0:01:14]} f5 {[%emt 0:14:47]} 17. f4 {[%emt 0:07:43]} Bd4 {[%emt 0:02:28]} 18. Bxd4 {[%emt 0:00:51]} cxd4 {[%emt 0:00:02]} 19. Rb4 {[%emt 0:08:08]} fxe4 {[%emt 0:07:20]} 20. Bxe4 {[%emt 0:00:33]} Qd6 {[%emt 0:00:37]} 21. Rxd4 {[%emt 0:11:11]} Bf5 {[%emt 0:02:48]} 22. Bxf5 {[%emt 0:29:37]} Rxf5 {[%emt 0:00:02]} 23. Qd2 {[%emt 0:00:32]} Rd8 {[%emt 0:05:00]} 24. Rd1 {[%emt 0:00:43]} h5 {[%emt 0:02:07]} 25. g3 {[%emt 0:01:44]} Kf7 {[%emt 0:04:13]} 26. Qe3 {[%emt 0:04:23]} Re8 {[%emt 0:01:42]} 27. Re4 {[%emt 0:00:57]} Rxe4 {[%emt 0:00:29]} 28. Qxe4 {[%emt 0:00:04]} h4 {[%emt 0:01:00]} 29. Kg2 {[%emt 0:03:11]} hxg3 {[%emt 0:00:29]} 30. hxg3 {[%emt 0:00:05]} Kf6 {[%emt 0:01:23]} 31. Qd4+ {[%emt 0:04:28]} Kf7 {[%emt 0:00:14]} 32. Kf3 {[%emt 0:01:50]} g5 {[%emt 0:02:39]} 33. Qa7+ {[%emt 0:02:30]} Kg6 {[%emt 0:01:19]} 34. Qd4 {[%emt 0:02:14]} Kf7 {[%emt 0:00:43]} 35. Qe4 {[%emt 0:01:45]} Kf6 {[%emt 0:00:57]} 36. Rd3 {[%emt 0:01:11]} a5 {[%emt 0:01:08]} 37. Kg4 {[%emt 0:03:37]} Qd7 {[%emt 0:00:40]} 38. Qe6+ {[%emt 0:00:53]} Qxe6 {[%emt 0:00:05]} 39. dxe6 {[%emt 0:00:02]} gxf4 {[%emt 0:00:20]} 40. gxf4 {[%emt 0:00:00]} Kxe6 {[%emt 0:00:00]} 41. Re3+ {[%emt 0:04:16]} Kf6 {[%emt 0:00:57]} 42. Rh3 {[%emt 0:00:04]} Rc5 {[%emt 0:01:14]} 1/2-1/2

[Event "Hungarian Super League 2024-25"]
[Site "Hungary"]
[Date "2024.11.02"]
[Round "1.19"]
[White "Matyassy, Lazar"]
[Black "Mihok-Juhasz, Barbara"]
[Result "1/2-1/2"]
[ECO "C47"]
[WhiteElo "2234"]
[BlackElo "2176"]
[Annotator "RC"]
[PlyCount "79"]
[EventDate "2024.10.30"]
[EventType "team-tourn"]
[EventCountry "HUN"]
[SourceTitle "playchess.com"]
[Source "ChessBase"]
[SourceQuality "1"]
[TimeControl "40/5400+30:1800+30"]

1. e4 {[%emt 0:00:44]} e5 {[%emt 0:01:38]} 2. Nf3 {[%emt 0:00:17]} Nf6 {[%emt 0:00:10]} 3. Nc3 {[%emt 0:00:07]} Nc6 {[%emt 0:00:08]} 4. d4 {[%emt 0:01:02]} exd4 {[%emt 0:00:16]} 5. Nxd4 {[%emt 0:00:08]} Bb4 {[%emt 0:00:33]} 6. Nxc6 {[%emt 0:00:40]} bxc6 {[%emt 0:00:07]} 7. Bd3 {[%emt 0:00:04]} O-O {[%emt 0:00:18]} 8. O-O {[%emt 0:00:08]} Re8 {[%emt 0:00:16]} 9. Qf3 {[%emt 0:07:21]} d6 {[%emt 0:05:56]} 10. Bd2 {[%emt 0:14:23]} a5 {[%emt 0:21:48]} 11. h3 {[%emt 0:10:51]} Bd7 {[%emt 0:04:33]} 12. Rad1 {[%emt 0:05:35]} Bc5 {[%emt 0:11:23]} 13. Rfe1 {[%emt 0:06:56]} Bd4 {[%emt 0:02:51]} 14. Bc1 {[%emt 0:10:40]} Rb8 {[%emt 0:11:06]} 15. Bc4 {[%emt 0:07:02]} Be5 {[%emt 0:06:23]} 16. b3 {[%emt 0:02:06]} h6 {[%emt 0:11:24]} 17. Kf1 {[%emt 0:10:29]} Be6 {[%emt 0:06:04]} 18. Bxe6 {[%emt 0:01:13]} Rxe6 {[%emt 0:00:27]} 19. Qd3 {[%emt 0:06:31]} Qe7 {[%emt 0:05:34]} 20. Na4 {[%emt 0:02:43]} g5 {[%emt 0:01:47]} 21. Ba3 {[%emt 0:07:18]} c5 {[%emt 0:04:42]} 22. Nb2 {[%emt 0:04:03]} Nh5 {[%emt 0:03:10]} 23. Qf3 {[%emt 0:00:58]} Nf4 {[%emt 0:00:29]} 24. g3 {[%emt 0:00:27]} Ng6 {[%emt 0:00:13]} 25. Nc4 {[%emt 0:00:13]} Rf6 {[%emt 0:00:17]} 26. Qg4 {[%emt 0:00:52]} h5 {[%emt 0:00:26]} 27. Qxh5 {[%emt 0:00:33]} Bxg3 {[%emt 0:00:04]} 28. Rd2 {[%emt 0:00:29]} Bf4 {[%emt 0:00:19]} 29. Rd3 {[%emt 0:00:30]} Re6 {[%emt 0:01:25]} 30. f3 {[%emt 0:00:32]} Ne5 {[%emt 0:00:28]} 31. Bb2 {[%emt 0:00:21]} f6 {[%emt 0:00:37]} 32. Bxe5 {[%emt 0:00:34]} fxe5 {[%emt 0:00:10]} 33. Qg4 {[%emt 0:00:31]} Rh6 {[%emt 0:00:22]} 34. Nxa5 {[%emt 0:00:32]} Ra8 {[%emt 0:00:12]} 35. Nc4 {[%emt 0:00:32]} Rxa2 {[%emt 0:00:19]} 36. Re2 {[%emt 0:00:23]} Rh4 {[%emt 0:01:48]} 37. Qf5 {[%emt 0:00:28]} Qf7 {[%emt 0:00:36]} 38. Qxf7+ {[%emt 0:00:37]} Kxf7 {[%emt 0:00:04]} 39. Kg2 {[%emt 0:00:10]} Ke6 {[%emt 0:00:46]} 40. Ne3 {[%emt 0:00:00]} 1/2-1/2

[Event "Hungarian Super League 2024-25"]
[Site "Hungary"]
[Date "2024.11.02"]
[Round "1.20"]
[White "Meszaros-Csonka, David"]
[Black "Terbe, Zsuzsanna"]
[Result "1-0"]
[ECO "D00"]
[WhiteElo "1936"]
[BlackElo "2160"]
[Annotator "RC"]
[PlyCount "93"]
[EventDate "2024.10.30"]
[EventType "team-tourn"]
[EventCountry "HUN"]
[SourceTitle "playchess.com"]
[Source "ChessBase"]
[SourceQuality "1"]
[TimeControl "40/5400+30:1800+30"]

1. d4 {[%emt 0:01:57]} d5 {[%emt 0:00:38]} 2. Bf4 {[%emt 0:00:43]} Nf6 {[%emt 0:00:12]} 3. e3 {[%emt 0:00:06]} e6 {[%emt 0:00:06]} 4. Nd2 {[%emt 0:00:49]} c5 {[%emt 0:00:10]} 5. c3 {[%emt 0:00:08]} Nc6 {[%emt 0:00:06]} 6. Ngf3 {[%emt 0:00:32]} Nh5 {[%emt 0:00:12]} 7. Bg5 {[%emt 0:01:59]} f6 {[%emt 0:00:58]} 8. Bh4 {[%emt 0:00:23]} g6 {[%emt 0:00:16]} 9. Bd3 {[%emt 0:03:49]} Be7 {[%emt 0:00:18]} 10. Bg3 {[%emt 0:11:53]} O-O {[%emt 0:17:32]} 11. O-O {[%emt 0:04:03]} Nxg3 {[%emt 0:01:42]} 12. hxg3 {[%emt 0:00:11]} e5 {[%emt 0:08:06]} 13. dxe5 {[%emt 0:09:43]} fxe5 {[%emt 0:00:10]} 14. e4 {[%emt 0:00:06]} d4 {[%emt 0:01:38]} 15. Bc4+ {[%emt 0:16:48]} Kg7 {[%emt 0:02:35]} 16. Bd5 {[%emt 0:00:52]} Bg4 {[%emt 0:11:17]} 17. Bxc6 {[%emt 0:12:28]} bxc6 {[%emt 0:00:08]} 18. Qa4 {[%emt 0:03:59]} Qc7 {[%emt 0:03:06]} 19. Rfc1 {[%emt 0:05:30]} d3 {[%emt 0:20:03]} 20. Qc4 {[%emt 0:16:14]} Rad8 {[%emt 0:02:03]} 21. Re1 {[%emt 0:00:42]} Qd6 {[%emt 0:09:19]} 22. Re3 {[%emt 0:03:37]} Rf7 {[%emt 0:03:56]} 23. Rd1 {[%emt 0:02:54]} Be6 {[%emt 0:07:23]} 24. Qa6 {[%emt 0:00:32]} Bf6 {[%emt 0:04:32]} 25. Nc4 {[%emt 0:00:41]} Qb8 {[%emt 0:02:39]} 26. b3 {[%emt 0:01:17]} Rfd7 {[%emt 0:01:29]} 27. Na5 {[%emt 0:00:58]} Qc7 {[%emt 0:02:27]} 28. b4 {[%emt 0:00:59]} cxb4 {[%emt 0:00:31]} 29. cxb4 {[%emt 0:00:02]} Rd6 {[%emt 0:00:11]} 30. Rexd3 {[%emt 0:00:57]} Rxd3 {[%emt 0:00:02]} 31. Rxd3 {[%emt 0:00:03]} Rxd3 {[%emt 0:00:06]} 32. Qxd3 {[%emt 0:00:07]} Bxa2 {[%emt 0:01:55]} 33. Qc2 {[%emt 0:00:26]} Bf7 {[%emt 0:00:16]} 34. Qxc6 {[%emt 0:00:44]} Qb8 {[%emt 0:00:52]} 35. Qc5 {[%emt 0:01:09]} a6 {[%emt 0:00:12]} 36. Nc6 {[%emt 0:00:31]} Qb7 {[%emt 0:00:05]} 37. Nfxe5 {[%emt 0:00:35]} Be8 {[%emt 0:00:44]} 38. Qd6 {[%emt 0:00:30]} h5 {[%emt 0:01:03]} 39. Qe6 {[%emt 0:00:24]} Bxc6 {[%emt 0:00:29]} 40. Nxc6 Qb6 {[%emt 0:00:00]} 41. e5 {[%emt 0:03:04]} Bg5 {[%emt 0:00:38]} 42. Qd7+ {[%emt 0:02:56]} Kh6 {[%emt 0:00:37]} 43. e6 {[%emt 0:04:24]} h4 {[%emt 0:01:52]} 44. Qe8 {[%emt 0:00:29]} Bf6 {[%emt 0:02:42]} 45. gxh4 {[%emt 0:00:56]} Bxh4 {[%emt 0:00:47]} 46. Qf8+ {[%emt 0:00:28]} Kh5 {[%emt 0:01:28]} 47. Qc5+ {[%emt 0:00:15]} 1-0